fUSD/lending_fUSD_20250324
["ID","MTS","AMOUNT","RATE_DAILY","PERIOD"]
[356601841,1742775031919,-350.0,0.00012567,3]
[356601842,1742775031929,-150.0,0.00012724,2]
[356601843,1742775031938,-350.0,0.00013197,3]
[356601844,1742775031947,-150.0,0.00013236,2]
[356601845,1742775031956,-151.0,0.00013236,2]
[356601846,1742775031965,-1115.0,0.00013236,2]
[356601847,1742775031974,-1116.67114393,0.00013581,2]
[356601848,1742775031983,-350.0,0.00013681,3]
[356601849,1742775031991,-150.0,0.000138,2]
[356601850,1742775032000,-150.0,0.00013823,2]
[356601851,1742775032009,-150.0,0.00013823,2]
[356601852,1742775032019,-216.45791144,0.000149,2]
[356601853,1742775032027,-216.45791144,0.000149,2]
[356601854,1742775032037,-300.0,0.00016235,2]
[356601855,1742775032046,-150.99,0.00016236,2]
[356601856,1742775032055,-151.0,0.00016236,2]
[356601857,1742775032064,-1115.0,0.00016236,2]
[356601858,1742775032074,-6843.7,0.00016922,2]
[356601859,1742775032083,-420.0,0.00017746,2]
[356601860,1742775032092,-331.98863316,0.000179,2]
[356601861,1742775032104,-543.61636919,0.000179,2]
[356601862,1742775032116,-503.91657098,0.000179,2]
[356601863,1742775032126,-154.4147335,0.000181,2]
[356601864,1742775032142,-734.43308866,0.00016922,2]
[356601880,1742775037837,-80.29691134,0.00016922,2]
[356601881,1742775037847,-580.5852665,0.000181,2]
[356601882,1742775037856,-436.84,0.0001894,2]
[356601883,1742775037865,-151.0,0.00019236,2]
[356601884,1742775037875,-50.65212871,0.00019236,2]
[356601885,1742775037999,-1064.34787129,0.00019236,2]
[356601886,1742775038009,-587.0,0.00019397,2]
[356601887,1742775038018,-178.16,0.000204,7]
[356601888,1742775038027,-823.0,0.00021203,2]
[356601889,1742775038036,-380.16390781,0.00021204,2]
[356601890,1742775038047,-56.67609219,0.00021204,2]
[356601891,1742775038057,-151.0,0.00022236,2]
[356601892,1742775038066,-1115.0,0.00022236,2]
[356601893,1742775038076,-250.0,0.00022265,2]
[356601894,1742775038085,-746.38580875,0.00022281,2]
[356601895,1742775038098,-253.61419125,0.00022281,2]
[356601896,1742775038107,-1163.00230287,0.000229,2]
[356601899,1742775040196,-4532.0066888,0.000229,2]
[356601900,1742775040411,-702.34665683,0.000229,2]
[356601924,1742775043245,-321.98527842,0.000229,2]
[356601932,1742775044389,-602.65907308,0.000229,2]
[356601933,1742775044399,-200.0,0.00023127,2]
[356601934,1742775044409,-1152.0,0.00023176,2]
[356601935,1742775044418,-436.84,0.00023468,2]
[356601936,1742775044428,-5551.0,0.000236,3]
[356601937,1742775044437,-13189.9095,0.00023762,2]
[356601938,1742775044448,-600.0,0.00023862,2]
[356601939,1742775044459,-193.0767794,0.00024056,2]
[356601940,1742775044469,-500.0,0.00024148,2]
[356601941,1742775044479,-5551.0,0.000243,5]
[356601942,1742775044488,-869.47,0.00024396,2]
[356601943,1742775044498,-714.009,0.00024657,7]
[356601944,1742775044508,-1000.0,0.00024658,2]
[356601945,1742775044517,-23900.0,0.00024748,2]
[356601946,1742775044526,-163.1,0.00024794,30]
[356601947,1742775044536,-222.0,0.000248,2]
[356601948,1742775044546,-200.0,0.000248,2]
[356601949,1742775044555,-200.0,0.000248,2]
[356601950,1742775044564,-200.0,0.000248,2]
[356601951,1742775044574,-344.13712,0.00024815,2]
[356601952,1742775044583,-209.8410811,0.00024832,2]
[356601953,1742775044593,-436.5699906,0.00024849,2]
[356601954,1742775044602,-428.64439186,0.00024866,2]
[356601955,1742775044612,-1153.36239392,0.000249,2]
[356601956,1742775044621,-50011.43083898,0.000249,2]
[356601957,1742775044633,-150.0,0.00025,2]
[356601958,1742775044643,-600.0,0.00025,2]
[356601959,1742775044653,-40017.0,0.00025,14]
[356601960,1742775044662,-200.0,0.00025048,2]
[356601961,1742775044672,-200.0,0.00025048,2]
[356601962,1742775044682,-200.0,0.00025048,2]
[356601963,1742775044692,-1000.0,0.00025066,2]
[356601964,1742775044702,-166.14,0.00025114,2]
[356601965,1742775044711,-151.0,0.00025236,2]
[356601966,1742775044720,-1115.0,0.00025236,2]
[356601967,1742775044730,-200.0,0.00025298,2]
[356601968,1742775044741,-200.0,0.00025298,2]
[356601969,1742775044751,-200.0,0.00025298,2]
[356601970,1742775044760,-1613.0,0.00025333,2]
[356601971,1742775044770,-200.0,0.00025551,2]
[356601972,1742775044780,-200.0,0.00025551,2]
[356601973,1742775044790,-200.0,0.00025551,2]
[356601974,1742775044800,-436.84,0.00025732,2]
[356601975,1742775044810,-200.0,0.00025807,2]
[356601976,1742775044820,-200.0,0.00025807,2]
[356601977,1742775044831,-200.0,0.00025807,2]
[356601978,1742775044840,-300.0,0.00025994,2]
[356601979,1742775044849,-172.19,0.00026849,2]
[356601980,1742775044859,-157.52,0.00026849,2]
[356601981,1742775044868,-922.96,0.00026849,2]
[356601982,1742775044879,-650.0,0.00027,2]
[356601983,1742775044888,-153.98,0.00027086,2]
[356601984,1742775044899,-200.0,0.00027144,2]
[356601985,1742775044909,-153.98,0.0002717,2]
[356601986,1742775044919,-153.98,0.00027253,2]
[356601987,1742775044929,-153.98,0.00027336,2]
[356601988,1742775044938,-300.0,0.00027364,2]
[356601989,1742775044948,-500.0,0.00027397,2]
[356601990,1742775044958,-273.05480446,0.00027397,2]
[356601991,1742775044967,-150.0,0.00027397,2]
[356601992,1742775044977,-500.0,0.00027397,2]
[356601993,1742775044986,-500.0,0.00027397,2]
[356601994,1742775044995,-150.0,0.00027397,2]
[356601995,1742775045006,-150.0,0.00027397,2]
[356601996,1742775045015,-500.0,0.00027397,2]
[356601997,1742775045024,-1279.89,0.00027397,2]
[356601998,1742775045034,-153.98,0.0002742,2]
[356601999,1742775045044,-501.06225465,0.00027424,2]
[356602000,1742775045053,-150.0,0.00027424,2]
[356602001,1742775045063,-500.99165857,0.00027424,2]
[356602002,1742775045072,-500.0,0.00027424,2]
[356602003,1742775045082,-253.14183214,0.00027424,2]
[356602004,1742775045091,-500.0,0.00027424,2]
[356602005,1742775045101,-209.54358929,0.00027452,2]
[356602006,1742775045110,-500.0,0.00027452,2]
[356602007,1742775045120,-573.68742477,0.00027452,2]
[356602008,1742775045130,-500.0,0.00027479,2]
[356602009,1742775045140,-153.98,0.00027503,2]
[356602010,1742775045149,-153.98,0.00027586,2]
[356602011,1742775045159,-153.98,0.0002767,2]
[356602012,1742775045168,-153.98,0.00027753,2]
[356602013,1742775045177,-153.98,0.00027836,2]
[356602014,1742775045187,-1000.0,0.00027852,2]
[356602015,1742775045196,-153.98,0.0002792,2]
[356602016,1742775045206,-436.84,0.00027996,2]
[356602017,1742775045215,-150.0,0.00028,2]
[356602018,1742775045225,-731.87225603,0.00028,30]
[356602019,1742775045235,-153.98,0.00028003,2]
[356602020,1742775045244,-153.98,0.00028086,2]
[356602021,1742775045254,-153.98,0.0002817,2]
[356602022,1742775045263,-157.57,0.000282,2]
[356602023,1742775045277,-151.0,0.00028236,2]
[356602024,1742775045287,-1115.0,0.00028236,2]
[356602025,1742775045298,-169.61077808,0.00028674,3]
[356602026,1742775045308,-1279.89,0.00028767,2]
[356602027,1742775045319,-700.0,0.00029,2]
[356602028,1742775045329,-75265.57502524,0.000299,2]
[356602029,1742775045340,-157.06996437,0.000299,2]
[356602030,1742775045351,-199.50206433,0.0003,2]
[356602031,1742775045362,-5782.91367546,0.0003,2]
[356602032,1742775045372,-193.32364707,0.0003,2]
[356602033,1742775045382,-1566.25,0.0003,120]
[356602034,1742775045392,-65871.94633956,0.0003,2]
[356602035,1742775045401,-10019.64884626,0.0003,30]
[356602036,1742775045411,-4885.56622991,0.0003,120]
[356602037,1742775045420,-150.0,0.0003,2]
[356602038,1742775045429,-212.0,0.0003,2]
[356602039,1742775045439,-500.0,0.00030136,2]
[356602040,1742775045449,-1279.89,0.00030137,2]
[356602041,1742775045458,-436.84,0.00030259,2]
[356602042,1742775045468,-906.76802151,0.0003031,2]
[356602043,1742775045477,-166.62386505,0.00030329,2]
[356602044,1742775045487,-500.0,0.0003041,2]
[356602045,1742775045496,-420.0,0.00030438,5]
[356602046,1742775045506,-166.62386505,0.00030438,2]
[356602047,1742775045515,-166.62386505,0.00030548,2]
[356602048,1742775045525,-1000.0,0.00030637,2]
[356602049,1742775045534,-464.52828369,0.00030684,2]
[356602050,1742775045544,-166.62386505,0.00030685,2]
[356602051,1742775045553,-166.62386505,0.00030795,2]
[356602052,1742775045563,-166.62386505,0.00030932,2]
[356602053,1742775045573,-1000.0,0.00031,120]
[356602054,1742775045582,-750.0,0.00031,2]
[356602055,1742775045592,-166.62386505,0.00031041,2]
[356602056,1742775045601,-166.62386505,0.00031178,2]
[356602057,1742775045611,-2101.49014641,0.000312,5]
[356602058,1742775045621,-151.0,0.00031236,2]
[356602059,1742775045632,-288.402,0.00031236,2]
[356602060,1742775045642,-10000.0,0.00031239,2]
[356602062,1742775045652,-166.62386505,0.00031288,2]
[356602064,1742775045662,-1045.35774278,0.000314,3]
[356602066,1742775045672,-166.62386505,0.00031425,2]
[356602068,1742775045682,-312.75505435,0.0003145,2]
[356602070,1742775045691,-10000.0,0.00031481,2]
[356602072,1742775045701,-208.534245,0.000315,2]
[356602074,1742775045711,-151.65354574,0.000315,2]
[356602076,1742775045722,-2000.0,0.000315,2]
[356602078,1742775045731,-1279.89,0.00031507,2]
[356602080,1742775045740,-166.62386505,0.00031534,30]
[356602082,1742775045750,-150.0,0.00031548,2]
[356602084,1742775045759,-13491.05853441,0.0003155,2]
[356602086,1742775045768,-837.76139177,0.0003155,2]
[356602089,1742775045779,-150.0,0.00031551,2]
[356602090,1742775045789,-150.0,0.00031552,2]
[356602091,1742775045798,-150.0,0.00031554,2]
[356602092,1742775045807,-150.0,0.00031557,2]
[356602093,1742775045817,-150.0,0.00031558,2]
[356602094,1742775045827,-150.0,0.0003156,2]
[356602095,1742775045836,-150.0,0.0003156,2]
[356602096,1742775045846,-150.0,0.00031566,2]
[356602097,1742775045856,-150.0,0.00031566,2]
[356602098,1742775045866,-150.0,0.00031568,2]
[356602099,1742775045876,-150.0,0.00031572,2]
[356602100,1742775045886,-150.0,0.00031575,2]
[356602101,1742775045895,-150.0,0.00031575,2]
[356602102,1742775045905,-150.0,0.00031579,2]
[356602103,1742775045914,-150.0,0.00031592,2]
[356602104,1742775045925,-150.0,0.00031592,2]
[356602105,1742775045935,-150.0,0.00031593,2]
[356602106,1742775045944,-150.0,0.00031595,2]
[356602107,1742775045953,-150.0,0.00031595,2]
[356602108,1742775045964,-150.0,0.00031597,2]
[356602109,1742775045974,-150.0,0.00031597,2]
[356602110,1742775045983,-150.0,0.00031599,2]
[356602111,1742775045993,-150.0,0.0003161,2]
[356602112,1742775046003,-150.0,0.00031611,2]
[356602113,1742775046012,-150.0,0.00031611,2]
[356602114,1742775046023,-150.0,0.00031612,2]
[356602115,1742775046033,-150.0,0.00031617,2]
[356602116,1742775046043,-150.0,0.00031617,2]
[356602117,1742775046052,-150.0,0.00031625,2]
[356602118,1742775046062,-150.0,0.00031626,2]
[356602119,1742775046072,-150.0,0.00031628,2]
[356602120,1742775046082,-150.0,0.0003163,2]
[356602121,1742775046092,-150.0,0.00031633,2]
[356602122,1742775046102,-150.0,0.00031637,2]
[356602123,1742775046112,-166.62386505,0.00031644,30]
[356602124,1742775046121,-150.0,0.00031646,2]
[356602125,1742775046132,-150.0,0.00031648,2]
[356602126,1742775046142,-150.0,0.00031649,2]
[356602127,1742775046152,-150.0,0.0003165,2]
[356602128,1742775046162,-150.0,0.00031653,2]
[356602129,1742775046172,-150.0,0.00031657,2]
[356602130,1742775046182,-150.0,0.00031658,2]
[356602131,1742775046191,-150.0,0.0003166,2]
[356602132,1742775046200,-150.0,0.00031661,2]
[356602133,1742775046210,-150.0,0.00031661,2]
[356602134,1742775046220,-10000.0,0.00031662,2]
[356602135,1742775046347,-188.25963979,0.00031663,2]
[356602136,1742775046359,-150.0,0.00031663,2]
[356602137,1742775046369,-150.0,0.00031663,2]
[356602138,1742775046379,-150.0,0.00031664,2]
[356602139,1742775046388,-150.0,0.00031665,2]
[356602140,1742775046398,-150.0,0.00031666,2]
[356602141,1742775046407,-150.0,0.00031671,2]
[356602142,1742775046417,-150.0,0.00031675,2]
[356602143,1742775046426,-150.0,0.00031675,2]
[356602144,1742775046436,-150.0,0.00031677,2]
[356602145,1742775046446,-150.0,0.00031687,2]
[356602146,1742775046455,-150.0,0.00031689,2]
[356602147,1742775046465,-150.0,0.00031692,2]
[356602148,1742775046475,-150.0,0.00031695,2]
[356602149,1742775046484,-150.0,0.00031697,2]
[356602150,1742775046494,-200.00982651,0.000317,30]
[356602151,1742775046503,-150.0,0.000317,2]
[356602152,1742775046513,-150.0,0.00031702,2]
[356602153,1742775046523,-150.0,0.00031702,2]
[356602154,1742775046533,-150.0,0.00031702,2]
[356602155,1742775046542,-150.0,0.00031714,2]
[356602156,1742775046551,-150.0,0.00031717,2]
[356602157,1742775046562,-150.0,0.00031719,2]
[356602158,1742775046571,-150.0,0.00031721,2]
[356602159,1742775046581,-150.0,0.00031722,2]
[356602160,1742775046591,-150.0,0.00031728,2]
[356602161,1742775046601,-150.0,0.0003173,2]
[356602162,1742775046611,-150.0,0.00031731,2]
[356602163,1742775046620,-150.0,0.00031736,2]
[356602164,1742775046629,-150.0,0.00031739,2]
[356602165,1742775046639,-150.0,0.00031741,2]
[356602166,1742775046649,-150.0,0.00031742,2]
[356602167,1742775046660,-150.0,0.00031742,2]
[356602168,1742775046669,-150.0,0.00031745,2]
[356602169,1742775046679,-150.0,0.00031747,2]
[356602170,1742775046689,-150.0,0.00031748,2]
[356602171,1742775046698,-150.0,0.00031752,2]
[356602172,1742775046707,-150.0,0.00031752,2]
[356602173,1742775046717,-150.0,0.00031753,2]
[356602174,1742775046727,-150.0,0.00031756,2]
[356602175,1742775046737,-150.0,0.00031757,2]
[356602176,1742775046746,-150.0,0.00031757,2]
[356602177,1742775046756,-157.60513701,0.0003176,2]
[356602178,1742775046765,-150.0,0.00031765,2]
[356602179,1742775046774,-150.0,0.00031768,2]
[356602180,1742775046785,-150.0,0.00031775,2]
[356602181,1742775046794,-150.0,0.00031776,2]
[356602182,1742775046803,-150.0,0.00031777,2]
[356602183,1742775046812,-150.0,0.00031777,2]
[356602184,1742775046822,-150.0,0.00031781,2]
[356602185,1742775046831,-150.0,0.00031784,2]
[356602186,1742775046840,-1906.2342,0.00031784,3]
[356602187,1742775046850,-150.0,0.00031788,2]
[356602188,1742775046859,-511.0,0.0003179,2]
[356602189,1742775046868,-150.0,0.00031792,2]
[356602190,1742775046877,-150.0,0.00031794,2]
[356602191,1742775046886,-150.0,0.00031794,2]
[356602192,1742775046895,-150.0,0.00031804,2]
[356602193,1742775046905,-10000.0,0.00031809,2]
[356602194,1742775046914,-150.0,0.00031813,2]
[356602195,1742775046923,-209.8410811,0.00031817,2]
[356602196,1742775046932,-344.13712,0.00031817,2]
[356602197,1742775046941,-150.0,0.00031818,2]
[356602198,1742775046951,-403.58,0.00031819,2]
[356602199,1742775046960,-150.0,0.00031821,2]
[356602200,1742775046969,-150.0,0.00031822,2]
[356602201,1742775046978,-150.0,0.00031824,2]
[356602202,1742775046988,-80000.0,0.00031827,10]
[356602203,1742775046997,-146915.942917,0.00031829,2]
[356602204,1742775047007,-403.58,0.00031829,2]
[356602205,1742775047016,-403.58,0.0003183,2]
[356602206,1742775047026,-403.58,0.0003183,2]
[356602207,1742775047035,-70732.27,0.00031839,2]
[356602208,1742775047044,-456.0,0.0003184,30]
[356602209,1742775047054,-2337.81496455,0.0003184,2]
[356602210,1742775047064,-2439.16850009,0.0003184,2]
[356602211,1742775047074,-80382.68472856,0.0003184,2]
[356602212,1742775047083,-2687.80927314,0.0003184,2]
[356602213,1742775047092,-75854.62012673,0.0003184,2]
[356602214,1742775047101,-1000.0,0.0003184,14]
[356602215,1742775047110,-1877.20878651,0.0003184,7]
[356602216,1742775047119,-909.99973168,0.0003184,2]
[356602217,1742775047129,-207.52511021,0.0003184,10]
[356602218,1742775047139,-558.04301948,0.0003184,5]
[356602219,1742775047148,-1970.34508597,0.0003184,5]
[356602220,1742775047157,-969.81507715,0.0003184,5]
[356602221,1742775047166,-587.83209836,0.0003184,5]
[356602222,1742775047175,-3100.0,0.0003184,5]
[356602223,1742775047184,-18767.8621555,0.0003184,5]
[356602224,1742775047193,-217.02206536,0.0003184,5]
[356602225,1742775047202,-1071.78297354,0.0003184,5]
[356602226,1742775047213,-20373.69727232,0.0003184,5]
[356602227,1742775047221,-800.0,0.0003184,5]
[356602228,1742775047230,-2376.45856895,0.0003184,5]
[356602229,1742775047239,-212.25107617,0.0003184,5]
[356602230,1742775047248,-300.60232476,0.0003184,14]
[356602231,1742775047257,-500.0,0.0003184,2]
[356602232,1742775047266,-500.0,0.0003184,2]
[356602233,1742775047280,-501.14825571,0.0003184,2]
[356602234,1742775047289,-255.20834431,0.0003184,10]
[356602235,1742775047298,-1498.94188076,0.0003184,30]
[356602236,1742775047308,-150.0,0.00031845,2]
[356602237,1742775047317,-150.0,0.00031852,2]
[356602238,1742775047326,-233.85,0.00031859,2]
[356602239,1742775047336,-500.0,0.0003186,30]
[356602240,1742775047347,-150.0,0.0003186,10]
[356602241,1742775047356,-403.58,0.0003189,2]
[356602242,1742775047366,-87007.67683456,0.000319,30]
[356602243,1742775047375,-368.0,0.000319,2]
[356602244,1742775047385,-751.0,0.000319,2]
[356602245,1742775047394,-10000.0,0.00031914,2]
[356602246,1742775047403,-845.55,0.00031975,30]
[356602247,1742775047412,-1000.0,0.00032,120]
[356602248,1742775047421,-906.76802149,0.00032411,2]
[356602249,1742775047431,-436.84,0.00032523,2]
[356602250,1742775047440,-922.96,0.00032646,2]
[356602251,1742775047449,-301.04324781,0.00032876,30]
[356602252,1742775047458,-1279.89,0.00032877,2]
[356602253,1742775047467,-403.58,0.00032878,2]
[356602254,1742775047476,-46793.57046539,0.00032888,120]
[356602255,1742775047485,-1000.0,0.00033,120]
[356602256,1742775047494,-800.0,0.00033,2]
[356602257,1742775047503,-179.6895,0.00033009,2]
[356602258,1742775047513,-220.11,0.00033276,2]
[356602259,1742775047522,-346.02,0.00033276,2]
[356602260,1742775047533,-151.25,0.00033276,2]
[356602261,1742775047542,-1000.0,0.00033422,2]
[356602262,1742775047551,-1000.0,0.00034,120]
[356602263,1742775047561,-2000.0,0.000342,2]
[356602264,1742775047570,-906.76802149,0.00034511,2]
[356602265,1742775047579,-150.0,0.00034548,10]
[356602266,1742775047588,-436.84,0.00034787,2]
[356602267,1742775047597,-500.0,0.0003484,30]
[356602268,1742775047606,-150.0,0.00034999,2]
[356602269,1742775047615,-1000.0,0.00035,120]
[356602270,1742775047624,-150.0,0.00035,2]
[356602271,1742775047634,-850.0,0.00035,2]
[356602272,1742775047644,-5000.0,0.00035,120]
[356602273,1742775047653,-619.31,0.00035288,120]
[356602274,1742775047662,-869.47,0.00035629,2]
[356602275,1742775047671,-150.0,0.00036369,2]
[356602276,1742775047681,-906.76802149,0.00036612,2]
[356602277,1742775047691,-900.0,0.00037,2]
[356602278,1742775047700,-2000.0,0.00037,2]
[356602279,1742775047709,-436.84,0.00037051,2]
[356602280,1742775047718,-155.51896767,0.000372,103]
[356602281,1742775047728,-8864.76,0.000375,120]
[356602282,1742775047737,-150.0,0.00037739,2]
[356602283,1742775047746,-155.80822493,0.00038,120]
[356602284,1742775047755,-1282.85,0.000381,2]
[356602285,1742775047764,-500.0,0.00038229,5]
[356602286,1742775047773,-922.96,0.00038443,2]
[356602287,1742775047782,-1414.0,0.000385,2]
[356602288,1742775047792,-202.25913284,0.00038699,7]
[356602289,1742775047801,-906.76802149,0.00038712,2]
[356602290,1742775047810,-950.0,0.00039,2]
[356602291,1742775047819,-150.0,0.00039109,2]
[356602292,1742775047828,-436.84,0.00039315,2]
[356602293,1742775047838,-2000.0,0.000397,2]
[356602294,1742775047847,-403.58,0.0003999,2]
[356602295,1742775047856,-1000.0,0.0004,120]
[356602296,1742775047865,-510.80530729,0.0004,120]
[356602297,1742775047874,-403.87814735,0.0004,7]
[356602298,1742775047883,-268.48595077,0.0004,7]
[356602299,1742775047892,-935.32897979,0.0004,7]
[356602300,1742775047901,-5036.28118496,0.0004,7]
[356602301,1742775047910,-5037.8874112,0.0004,21]
[356602302,1742775047919,-270.0,0.0004,120]
[356602303,1742775047928,-155.80822493,0.0004,120]
[356602304,1742775047938,-35000.0,0.0004,7]
[356602305,1742775047947,-5000.0,0.0004,120]
[356602306,1742775047956,-157.60513701,0.00040473,2]
[356602307,1742775047965,-150.0,0.00040479,2]
[356602308,1742775047975,-906.76802149,0.00040813,15]
[356602309,1742775047984,-1000.0,0.00041,120]
[356602310,1742775047993,-510.80530729,0.00041,120]
[356602311,1742775048002,-1000.0,0.00041,2]
[356602312,1742775048011,-158.0,0.00041,14]
[356602313,1742775048021,-1500.0,0.00041095,30]
[356602314,1742775048030,-1500.0,0.00041095,30]
[356602315,1742775048039,-1500.0,0.00041095,30]
[356602316,1742775048048,-407.53065957,0.00041095,30]
[356602317,1742775048057,-150.0,0.00041096,2]
[356602318,1742775048066,-436.84,0.00041579,2]
[356602319,1742775048075,-150.0,0.00041849,120]
[356602320,1742775048084,-200.0,0.00041876,120]
[356602321,1742775048094,-1000.0,0.00042,120]
[356602322,1742775048103,-707.02,0.00042,120]
[356602323,1742775048113,-295.41,0.00042,120]
[356602324,1742775048122,-244.93,0.00042,120]
[356602325,1742775048131,-150.0,0.00042177,2]
[356602326,1742775048141,-403.58,0.00042268,2]
[356602327,1742775048151,-83852.08922738,0.00042278,120]
[356602328,1742775048161,-203.34326552,0.000423,120]
[356602329,1742775048171,-209.8410811,0.00042391,2]
[356602330,1742775048180,-344.13712,0.00042391,2]
[356602331,1742775048190,-280.0,0.000424,120]
[356602332,1742775048199,-485.155346,0.0004241,14]
[356602333,1742775048209,-485.155346,0.0004241,14]
[356602334,1742775048220,-403.58,0.0004241,2]
[356602335,1742775048229,-403.58,0.0004241,2]
[356602336,1742775048238,-403.58,0.0004241,2]
[356602337,1742775048248,-403.58,0.0004241,2]
[356602338,1742775048259,-403.58,0.0004241,2]
[356602339,1742775048268,-50000.0,0.0004242,30]
[356602340,1742775048282,-50000.0,0.0004242,30]
[356602341,1742775048291,-50000.0,0.0004242,30]
[356602342,1742775048301,-50000.0,0.0004242,30]
[356602343,1742775048310,-50000.0,0.0004242,30]
[356602344,1742775048322,-40878.40261905,0.0004242,30]
[356602345,1742775048386,-150.0,0.00031605,2]
[356602346,1742775048395,-150.0,0.0003161,2]
[356602347,1742775048404,-150.0,0.00031618,2]
[356602348,1742775048414,-150.0,0.00031678,2]
[356602349,1742775048423,-150.0,0.00031737,2]
[356602350,1742775048432,-150.0,0.00031765,2]
[356602351,1742775048441,-150.0,0.00031824,2]
[356602352,1742775048450,-150.0,0.00031839,2]
[356602353,1742775048460,-150.0,0.00031848,2]
[356602354,1742775048469,-157.06996437,0.00038233,2]
[356602355,1742775048479,-9121.59738095,0.0004242,30]
[356602356,1742775048488,-6637.66335904,0.0004242,30]
[356602359,1742775294954,-250.0,0.00011,2]
[356602387,1742776232044,-2008.50900001,0.00012,2]
[356602394,1742776237959,-849.7,0.00012,2]
[356602395,1742776238015,-871.5,0.00012,2]
[356602396,1742776238070,-550.0,0.00012,2]
[356602397,1742776238082,-261.73769462,0.00012,2]
[356602398,1742776238180,-917.27552325,0.00012,2]
[356602399,1742776238192,-3093.3,0.00012,2]
[356602404,1742776240245,-1415.03353894,0.00012,2]
[356602405,1742776240257,-803.865,0.00012,2]
[356602406,1742776240268,-1728.47066275,0.00012,2]
[356602407,1742776240298,-10986.26542967,0.00012,2]
[356602408,1742776240354,-13297.35999812,0.00012,2]
[356602422,1742776244386,-4376.12688786,0.00012,2]
[356602424,1742776246060,-133745.40176775,0.00012,2]
[356602425,1742776246071,-612.91299792,0.00012,2]
[356602426,1742776246384,-8660.34196531,0.00012,2]
[356602432,1742777060864,392.51797849,0.00025,60]
[356602433,1742777119795,-202.672,0.00011,2]
[356602434,1742777128906,2500.0,0.00025,60]
[356602452,1742777283865,-47.328,0.00011,2]
[356602453,1742777283891,-102.672,0.0001144,2]
[356602464,1742777432258,-47.328,0.0001144,2]
[356602465,1742777432272,-374.02449532,0.0001188,2]
[356602466,1742777432282,-5791.44714579,0.0001189,2]
[356602467,1742777432291,-281.71833198,0.00011899,2]
[356602468,1742777432301,-150.0,0.00011899,2]
[356602469,1742777432310,-300.0,0.00011899,2]
[356602470,1742777432320,-313.0011,0.000119,2]
[356602471,1742777432329,-2378.9198,0.000119,2]
[356602472,1742777432339,-2536.5694,0.000119,2]
[356602473,1742777432350,-500.0,0.000119,2]
[356602474,1742777432359,-50048.5306,0.000119,2]
[356602475,1742777432369,-1000.0,0.000119,2]
[356602476,1742777432379,-5706.5085,0.000119,2]
[356602477,1742777432388,-157.60513701,0.000119,2]
[356602478,1742777432397,-313.6676,0.000119,2]
[356602479,1742777432407,-267.9351,0.000119,2]
[356602480,1742777432416,-2991.3708,0.000119,2]
[356602481,1742777432427,-1789.3828,0.000119,2]
[356602482,1742777432437,-3627.07208596,0.000119,2]
[356602483,1742777432447,-223.5509,0.000119,2]
[356602484,1742777432456,-315.35281941,0.000119,2]
[356602485,1742777432466,-151.0,0.00011993,2]
[356602486,1742777432476,-106664.81315623,0.00012,2]
[356602487,1742777432627,-17298.86204753,0.00012,2]